[Event "Early-Titled-Tuesday-Blitz-June-18-2024"]
[Site "Chess.com"]
[Date "2024.06.18"]
[Round "11"]
[White "XDPS"]
[Black "Gnechko_Ruslan"]
[Result "1-0"]
[WhiteElo "2882"]
[BlackElo "2594"]
[TimeControl "180+1"]
[EndTime "10:06:36 PDT"]
[Termination "XDPS won by resignation"]

1. d4 {[%clk 0:03:00.9]} 1... d5 {[%clk 0:02:59.7]} 2. Nf3 {[%clk 0:03:00.4]}
2... Nf6 {[%clk 0:02:58.7]} 3. Bf4 {[%clk 0:03:00.9]} 3... c5 {[%clk 0:02:58.3]}
4. e3 {[%clk 0:03:01.1]} 4... Nc6 {[%clk 0:02:58.6]} 5. Nbd2 {[%clk 0:03:01.4]}
5... cxd4 {[%clk 0:02:59]} 6. exd4 {[%clk 0:03:01.6]} 6... Bg4 {[%clk
0:02:59.6]} 7. c3 {[%clk 0:03:01.7]} 7... e6 {[%clk 0:03:00.3]} 8. Qb3 {[%clk
0:02:59.3]} 8... Qc8 {[%clk 0:03:00.6]} 9. Bd3 {[%clk 0:02:59]} 9... Be7 {[%clk
0:03:00.6]} 10. O-O {[%clk 0:02:59.5]} 10... O-O {[%clk 0:03:00.9]} 11. Rfe1
{[%clk 0:03:00.1]} 11... Bh5 {[%clk 0:03:01.2]} 12. h3 {[%clk 0:02:56.5]} 12...
a6 {[%clk 0:03:01.5]} 13. Rac1 {[%clk 0:02:54.4]} 13... b5 {[%clk 0:03:01.7]}
14. a3 {[%clk 0:02:54.1]} 14... Na5 {[%clk 0:03:01.9]} 15. Qc2 {[%clk
0:02:52.3]} 15... Bg6 {[%clk 0:03:00.3]} 16. Bxg6 {[%clk 0:02:52.5]} 16... hxg6
{[%clk 0:02:59.9]} 17. Ne5 {[%clk 0:02:53]} 17... Nc4 {[%clk 0:03:00.3]} 18.
Ndf3 {[%clk 0:02:53.5]} 18... Ne4 {[%clk 0:02:56.8]} 19. Nd3 {[%clk 0:02:53.7]}
19... a5 {[%clk 0:02:34.2]} 20. a4 {[%clk 0:02:52.4]} 20... b4 {[%clk 0:02:30]}
21. cxb4 {[%clk 0:02:52]} 21... axb4 {[%clk 0:02:25.6]} 22. b3 {[%clk
0:02:52.5]} 22... Ncd6 {[%clk 0:02:21]} 23. Nc5 {[%clk 0:02:52.1]} 23... Nc3
{[%clk 0:02:16]} 24. Ne5 {[%clk 0:02:51.3]} 24... Nf5 {[%clk 0:02:12.6]} 25. Qd3
{[%clk 0:02:28.5]} 25... Nxd4 {[%clk 0:01:41.4]} 26. Qxd4 {[%clk 0:02:08.3]}
26... Bxc5 {[%clk 0:01:40.7]} 27. Qd3 {[%clk 0:02:08.4]} 27... Qb7 {[%clk
0:01:30.9]} 28. Bd2 {[%clk 0:02:07.9]} 28... Rac8 {[%clk 0:01:14.1]} 29. Bxc3
{[%clk 0:02:03.4]} 29... bxc3 {[%clk 0:01:12.2]} 30. Rxc3 {[%clk 0:02:04]} 30...
Bb4 {[%clk 0:01:08.3]} 31. Rxc8 {[%clk 0:02:04]} 31... Rxc8 {[%clk 0:01:09.2]}
32. Re3 {[%clk 0:01:57.2]} 32... Rc1+ {[%clk 0:01:03.6]} 33. Kh2 {[%clk
0:01:57.6]} 33... Bd6 {[%clk 0:01:04]} 34. f4 {[%clk 0:01:56.8]} 34... Bc5
{[%clk 0:00:57.7]} 35. Re2 {[%clk 0:01:47.8]} 35... Bg1+ {[%clk 0:00:50.5]} 36.
Kg3 {[%clk 0:01:47.5]} 36... Qe7 {[%clk 0:00:43]} 37. Rc2 {[%clk 0:01:44.2]}
37... Re1 {[%clk 0:00:38]} 38. Rc8+ {[%clk 0:01:31.3]} 38... Kh7 {[%clk
0:00:37.6]} 39. Nf3 {[%clk 0:01:31.8]} 39... Re3 {[%clk 0:00:20.8]} 40. Qxe3
{[%clk 0:01:31.9]} 40... Bxe3 {[%clk 0:00:20]} 41. Ng5+ {[%clk 0:01:32.2]} 1-0

[Event "Early-Titled-Tuesday-Blitz-June-18-2024"]
[Site "Chess.com"]
[Date "2024.06.18"]
[Round "11"]
[White "ATM622"]
[Black "salomez"]
[Result "1-0"]
[WhiteElo "2533"]
[BlackElo "2364"]
[TimeControl "180+1"]
[EndTime "10:06:43 PDT"]
[Termination "ATM622 won on time"]

1. d4 {[%clk 0:03:00.9]} 1... Nf6 {[%clk 0:02:59.6]} 2. c4 {[%clk 0:03:00.5]}
2... g6 {[%clk 0:02:58.7]} 3. g3 {[%clk 0:03:00.6]} 3... Bg7 {[%clk 0:02:56]} 4.
Bg2 {[%clk 0:03:00.8]} 4... d6 {[%clk 0:02:55.7]} 5. Nf3 {[%clk 0:03:01.1]} 5...
O-O {[%clk 0:02:55.6]} 6. O-O {[%clk 0:03:01.3]} 6... c5 {[%clk 0:02:55.9]} 7.
Nc3 {[%clk 0:03:01.2]} 7... Nc6 {[%clk 0:02:54.8]} 8. d5 {[%clk 0:03:01.4]} 8...
Na5 {[%clk 0:02:55.1]} 9. Qd3 {[%clk 0:03:01.5]} 9... a6 {[%clk 0:02:43.9]} 10.
a4 {[%clk 0:02:55.1]} 10... Nb3 {[%clk 0:02:41.4]} 11. Ra3 {[%clk 0:02:52.5]}
11... Nxc1 {[%clk 0:02:41.3]} 12. Rxc1 {[%clk 0:02:51.8]} 12... Bf5 {[%clk
0:02:23.4]} 13. e4 {[%clk 0:02:47.2]} 13... Bg4 {[%clk 0:02:22.8]} 14. h3 {[%clk
0:02:36.4]} 14... Bd7 {[%clk 0:02:20.8]} 15. Re1 {[%clk 0:02:33.1]} 15... Qc8
{[%clk 0:02:12.8]} 16. Kh2 {[%clk 0:02:31.8]} 16... Ne8 {[%clk 0:02:06.5]} 17.
a5 {[%clk 0:02:27.4]} 17... Rb8 {[%clk 0:01:58.5]} 18. e5 {[%clk 0:02:25.5]}
18... dxe5 {[%clk 0:01:55.9]} 19. Nxe5 {[%clk 0:02:25.4]} 19... Bf5 {[%clk
0:01:51.4]} 20. Qe2 {[%clk 0:02:23.9]} 20... Nd6 {[%clk 0:01:51.2]} 21. Na4
{[%clk 0:02:19.1]} 21... Bxe5 {[%clk 0:01:47.6]} 22. Nb6 {[%clk 0:02:18.9]}
22... Bxg3+ {[%clk 0:01:09.3]} 23. fxg3 {[%clk 0:02:19.8]} 23... Qc7 {[%clk
0:01:05.3]} 24. Qxe7 {[%clk 0:02:15.9]} 24... Qxe7 {[%clk 0:01:02.5]} 25. Rxe7
{[%clk 0:02:16.8]} 25... Rfe8 {[%clk 0:01:00.1]} 26. Rxe8+ {[%clk 0:02:15.3]}
26... Rxe8 {[%clk 0:00:59.6]} 27. g4 {[%clk 0:02:12.5]} 27... Bb1 {[%clk
0:00:49.5]} 28. Bf3 {[%clk 0:02:08.3]} 28... Re1 {[%clk 0:00:38.7]} 29. Kg3
{[%clk 0:02:05.8]} 29... Be4 {[%clk 0:00:37.1]} 30. Kf2 {[%clk 0:02:01.7]} 30...
Rc1 {[%clk 0:00:19.8]} 31. Bxe4 {[%clk 0:01:59.3]} 31... Nxe4+ {[%clk
0:00:19.6]} 32. Ke3 {[%clk 0:01:59.8]} 32... f5 {[%clk 0:00:17]} 33. gxf5 {[%clk
0:01:53.1]} 33... gxf5 {[%clk 0:00:17.1]} 34. Kf4 {[%clk 0:01:53.6]} 34... Nd6
{[%clk 0:00:15.5]} 35. Rc3 {[%clk 0:01:51.6]} 35... Rxc3 {[%clk 0:00:11.7]} 36.
bxc3 {[%clk 0:01:50.7]} 36... Kf7 {[%clk 0:00:10.8]} 37. Ke5 {[%clk 0:01:46.7]}
37... Ke7 {[%clk 0:00:10.9]} 38. Kf4 {[%clk 0:01:41.9]} 38... Kf6 {[%clk
0:00:09.2]} 39. Nd7+ {[%clk 0:01:41.8]} 39... Ke7 {[%clk 0:00:09]} 40. Nxc5
{[%clk 0:01:42.2]} 40... Nxc4 {[%clk 0:00:07.7]} 41. Nxb7 {[%clk 0:01:42.5]} 1-0

[Event "Early-Titled-Tuesday-Blitz-June-18-2024"]
[Site "Chess.com"]
[Date "2024.06.18"]
[Round "11"]
[White "Orest_Vovk"]
[Black "GoltsevDmitry2000"]
[Result "0-1"]
[WhiteElo "2556"]
[BlackElo "2709"]
[TimeControl "180+1"]
[EndTime "10:06:47 PDT"]
[Termination "GoltsevDmitry2000 won on time"]

1. h4 {[%clk 0:02:54.5]} 1... e5 {[%clk 0:02:59.3]} 2. h5 {[%clk 0:02:54.3]}
2... d5 {[%clk 0:02:59]} 3. h6 {[%clk 0:02:54.5]} 3... Nxh6 {[%clk 0:02:58.9]}
4. d4 {[%clk 0:02:54.9]} 4... e4 {[%clk 0:02:58.1]} 5. Bxh6 {[%clk 0:02:55.4]}
5... gxh6 {[%clk 0:02:59]} 6. e3 {[%clk 0:02:56.2]} 6... c6 {[%clk 0:02:58.3]}
7. c4 {[%clk 0:02:56.1]} 7... Nd7 {[%clk 0:02:57.1]} 8. Nc3 {[%clk 0:02:56.7]}
8... Nf6 {[%clk 0:02:56.5]} 9. Qb3 {[%clk 0:02:56.8]} 9... Qb6 {[%clk 0:02:55]}
10. cxd5 {[%clk 0:00:58.4]} 10... Qxb3 {[%clk 0:02:53.6]} 11. axb3 {[%clk
0:00:57.6]} 11... Nxd5 {[%clk 0:02:54.2]} 12. Nxd5 {[%clk 0:00:55.2]} 12... cxd5
{[%clk 0:02:54]} 13. Bb5+ {[%clk 0:00:54.9]} 13... Kd8 {[%clk 0:02:50]} 14. Ne2
{[%clk 0:00:53]} 14... a6 {[%clk 0:02:44.4]} 15. Nf4 {[%clk 0:00:52.7]} 15...
Be6 {[%clk 0:02:41.2]} 16. Be2 {[%clk 0:00:41.6]} 16... Bb4+ {[%clk 0:02:37]}
17. Kd1 {[%clk 0:00:39.6]} 17... Bf8 {[%clk 0:02:36.3]} 18. Rh5 {[%clk
0:00:38.4]} 18... Rg8 {[%clk 0:02:30.6]} 19. g3 {[%clk 0:00:28.9]} 19... Rg5
{[%clk 0:02:29.8]} 20. Nxe6+ {[%clk 0:00:17.7]} 20... fxe6 {[%clk 0:02:28.4]}
21. Rc1 {[%clk 0:00:15.2]} 21... Kd7 {[%clk 0:02:24.8]} 22. Rc2 {[%clk
0:00:10.5]} 22... Bg7 {[%clk 0:02:22.9]} 23. Rxg5 {[%clk 0:00:07.5]} 23... hxg5
{[%clk 0:02:23.8]} 24. Bg4 {[%clk 0:00:07.8]} 24... Bf8 {[%clk 0:02:22.1]} 25.
Ke2 {[%clk 0:00:06.8]} 25... Bb4 {[%clk 0:02:22.4]} 26. Rc1 {[%clk 0:00:06.7]}
26... h6 {[%clk 0:02:21.7]} 27. Rh1 {[%clk 0:00:04.7]} 27... Bf8 {[%clk
0:02:21.7]} 28. Rc1 {[%clk 0:00:04.4]} 28... Bg7 {[%clk 0:02:19.8]} 29. Rc2
{[%clk 0:00:04.3]} 29... Rh8 {[%clk 0:02:19.7]} 30. Bh5 {[%clk 0:00:04.1]} 30...
Rf8 {[%clk 0:02:19.6]} 31. Bg4 {[%clk 0:00:03.9]} 31... Kd6 {[%clk 0:02:19.5]}
32. b4 {[%clk 0:00:04]} 32... Rh8 {[%clk 0:02:18.2]} 33. Bh5 {[%clk 0:00:03.8]}
33... e5 {[%clk 0:02:18.8]} 34. dxe5+ {[%clk 0:00:03.7]} 34... Bxe5 {[%clk
0:02:19.7]} 35. b5 {[%clk 0:00:04.2]} 35... axb5 {[%clk 0:02:19.3]} 36. b3
{[%clk 0:00:04.5]} 36... Ra8 {[%clk 0:02:18.5]} 37. Bf7 {[%clk 0:00:03.3]} 37...
Ra3 {[%clk 0:02:18.5]} 38. Rd2 {[%clk 0:00:03.7]} 38... d4 {[%clk 0:02:16]} 39.
exd4 {[%clk 0:00:03.5]} 39... Bf6 {[%clk 0:02:16.5]} 40. Rd1 {[%clk 0:00:03.4]}
40... Ra2+ {[%clk 0:02:16.2]} 41. Rd2 {[%clk 0:00:03.7]} 41... Rxd2+ {[%clk
0:02:15.1]} 42. Kxd2 {[%clk 0:00:04.6]} 42... Bxd4 {[%clk 0:02:15.6]} 43. Ke2
{[%clk 0:00:05.2]} 43... Kc5 {[%clk 0:02:13.9]} 44. g4 {[%clk 0:00:05.3]} 44...
Kd6 {[%clk 0:02:13.2]} 45. Bg6 {[%clk 0:00:05.1]} 45... Ke5 {[%clk 0:02:13.5]}
46. f3 {[%clk 0:00:05]} 46... e3 {[%clk 0:02:13.2]} 47. Kd3 {[%clk 0:00:04.7]}
47... Kf4 {[%clk 0:02:13.2]} 48. Ke2 {[%clk 0:00:05.2]} 48... b4 {[%clk
0:02:12.4]} 49. Be4 {[%clk 0:00:05.2]} 49... h5 {[%clk 0:02:09.4]} 50. gxh5
{[%clk 0:00:04.3]} 50... g4 {[%clk 0:02:10.1]} 51. Bxb7 {[%clk 0:00:02.6]} 51...
g3 {[%clk 0:02:10.2]} 52. Kf1 {[%clk 0:00:03]} 52... g2+ {[%clk 0:02:06.9]} 53.
Kxg2 {[%clk 0:00:02]} 53... e2 {[%clk 0:02:07.6]} 0-1

[Event "Early-Titled-Tuesday-Blitz-June-18-2024"]
[Site "Chess.com"]
[Date "2024.06.18"]
[Round "11"]
[White "szefru"]
[Black "pospisku"]
[Result "0-1"]
[WhiteElo "2333"]
[BlackElo "2544"]
[TimeControl "180+1"]
[EndTime "10:06:49 PDT"]
[Termination "pospisku won by resignation"]

1. e4 {[%clk 0:03:00.9]} 1... c5 {[%clk 0:02:54.3]} 2. Nf3 {[%clk 0:02:59.7]}
2... Nc6 {[%clk 0:02:54]} 3. Bb5 {[%clk 0:02:59]} 3... e6 {[%clk 0:02:54.2]} 4.
O-O {[%clk 0:02:58.6]} 4... Nge7 {[%clk 0:02:54.3]} 5. b3 {[%clk 0:02:57.4]}
5... a6 {[%clk 0:02:52.6]} 6. Be2 {[%clk 0:02:56.8]} 6... Ng6 {[%clk 0:02:48.2]}
7. Bb2 {[%clk 0:02:54.6]} 7... e5 {[%clk 0:02:42.9]} 8. a4 {[%clk 0:02:33.3]}
8... Be7 {[%clk 0:02:38.6]} 9. Bc4 {[%clk 0:02:31.8]} 9... O-O {[%clk
0:02:35.1]} 10. Nc3 {[%clk 0:02:31.7]} 10... d6 {[%clk 0:02:32.6]} 11. Nd5
{[%clk 0:02:30.7]} 11... Rb8 {[%clk 0:02:28.4]} 12. Re1 {[%clk 0:01:50.8]} 12...
Kh8 {[%clk 0:01:54.4]} 13. c3 {[%clk 0:01:32]} 13... f5 {[%clk 0:01:40]} 14.
Nxe7 {[%clk 0:00:38.2]} 14... Qxe7 {[%clk 0:01:29.6]} 15. exf5 {[%clk
0:00:38.2]} 15... Bxf5 {[%clk 0:01:28.8]} 16. d4 {[%clk 0:00:38.5]} 16... Bg4
{[%clk 0:01:18.4]} 17. Be2 {[%clk 0:00:33.8]} 17... Nf4 {[%clk 0:01:15.9]} 18.
dxe5 {[%clk 0:00:28]} 18... Nxe2+ {[%clk 0:01:13.7]} 19. Qxe2 {[%clk 0:00:13.5]}
19... Nxe5 {[%clk 0:01:11.5]} 20. Kh1 {[%clk 0:00:13.8]} 20... Qf7 {[%clk
0:01:01.6]} 21. c4 {[%clk 0:00:12.1]} 21... Nxf3 {[%clk 0:01:00.4]} 22. Qe4
{[%clk 0:00:07.3]} 22... Nxe1 {[%clk 0:00:52]} 23. Qxg4 {[%clk 0:00:07.4]} 23...
Nd3 {[%clk 0:00:52.1]} 0-1

[Event "Early-Titled-Tuesday-Blitz-June-18-2024"]
[Site "Chess.com"]
[Date "2024.06.18"]
[Round "11"]
[White "LLariMarc"]
[Black "MaestroCheck"]
[Result "0-1"]
[WhiteElo "2485"]
[BlackElo "2625"]
[TimeControl "180+1"]
[EndTime "10:06:53 PDT"]
[Termination "MaestroCheck won by resignation"]

1. b3 {[%clk 0:03:00.9]} 1... Nf6 {[%clk 0:02:57.8]} 2. Bb2 {[%clk 0:03:00.6]}
2... d5 {[%clk 0:02:58.3]} 3. g3 {[%clk 0:03:00.5]} 3... Bf5 {[%clk 0:02:58.6]}
4. d3 {[%clk 0:02:59.7]} 4... e6 {[%clk 0:02:58.6]} 5. Bg2 {[%clk 0:02:59]} 5...
Be7 {[%clk 0:02:58.8]} 6. Nd2 {[%clk 0:02:58.7]} 6... h6 {[%clk 0:02:54.4]} 7.
e3 {[%clk 0:02:58.9]} 7... O-O {[%clk 0:02:53.3]} 8. Ne2 {[%clk 0:02:59]} 8...
c5 {[%clk 0:02:52]} 9. h3 {[%clk 0:02:59.3]} 9... Nc6 {[%clk 0:02:52.1]} 10. O-O
{[%clk 0:02:59.5]} 10... Rc8 {[%clk 0:02:49.8]} 11. a3 {[%clk 0:02:59.8]} 11...
Bh7 {[%clk 0:02:48.8]} 12. f4 {[%clk 0:02:59]} 12... b5 {[%clk 0:02:41.3]} 13.
g4 {[%clk 0:02:58.9]} 13... c4 {[%clk 0:02:32.4]} 14. bxc4 {[%clk 0:02:40.2]}
14... bxc4 {[%clk 0:02:30.4]} 15. dxc4 {[%clk 0:02:39.1]} 15... Na5 {[%clk
0:02:30.5]} 16. cxd5 {[%clk 0:02:34.1]} 16... Bxc2 {[%clk 0:02:25.6]} 17. Qe1
{[%clk 0:02:33.9]} 17... Nxd5 {[%clk 0:02:26.1]} 18. Bd4 {[%clk 0:02:25]} 18...
Bh4 {[%clk 0:02:25.4]} 19. Ng3 {[%clk 0:02:21.2]} 19... Bd3 {[%clk 0:02:24.2]}
20. Rf3 {[%clk 0:02:03.1]} 20... Rc2 {[%clk 0:02:19.6]} 21. Ndf1 {[%clk
0:02:01.4]} 21... Nb3 {[%clk 0:02:03.9]} 22. Rd1 {[%clk 0:01:57.6]} 22... Be2
{[%clk 0:01:52.7]} 23. Qxe2 {[%clk 0:01:53]} 23... Rxe2 {[%clk 0:01:52]} 24.
Nxe2 {[%clk 0:01:53.9]} 24... Nxd4 {[%clk 0:01:52.5]} 25. Nxd4 {[%clk
0:01:39.4]} 25... Qb6 {[%clk 0:01:43.3]} 26. Kh2 {[%clk 0:01:36.6]} 26... Bf6
{[%clk 0:01:33.4]} 27. Ne2 {[%clk 0:01:34.8]} 27... Qa6 {[%clk 0:01:20.5]} 28.
Nfg3 {[%clk 0:01:28.7]} 28... Qa4 {[%clk 0:01:10.1]} 29. e4 {[%clk 0:01:27.3]}
29... Qxd1 {[%clk 0:01:09.7]} 30. exd5 {[%clk 0:01:25.2]} 30... exd5 {[%clk
0:01:09.4]} 31. Rf1 {[%clk 0:01:21.9]} 31... Qd2 {[%clk 0:01:08]} 32. Ng1 {[%clk
0:01:15.7]} 32... d4 {[%clk 0:01:02.1]} 33. Ne4 {[%clk 0:01:13]} 33... Qe3
{[%clk 0:00:42.4]} 34. Rd1 {[%clk 0:01:00.9]} 34... Qxf4+ {[%clk 0:00:39.1]} 35.
Kh1 {[%clk 0:01:00.4]} 35... Be5 {[%clk 0:00:39.5]} 36. Nf3 {[%clk 0:00:55.9]}
36... Qxe4 {[%clk 0:00:39.6]} 37. Nxd4 {[%clk 0:00:56.1]} 37... Qf4 {[%clk
0:00:39.5]} 38. Nf3 {[%clk 0:00:56.2]} 38... Bd6 {[%clk 0:00:39.3]} 39. Rd4
{[%clk 0:00:53.1]} 39... Qc1+ {[%clk 0:00:38.3]} 40. Ng1 {[%clk 0:00:50.9]}
40... Bc5 {[%clk 0:00:38.4]} 0-1

[Event "Early-Titled-Tuesday-Blitz-June-18-2024"]
[Site "Chess.com"]
[Date "2024.06.18"]
[Round "11"]
[White "HelenaWalker2912"]
[Black "Kostukov_Alex"]
[Result "0-1"]
[WhiteElo "2385"]
[BlackElo "2318"]
[TimeControl "180+1"]
[EndTime "10:06:56 PDT"]
[Termination "Kostukov_Alex won by resignation"]

1. d4 {[%clk 0:03:00.9]} 1... g6 {[%clk 0:02:56.8]} 2. c4 {[%clk 0:03:01.1]}
2... Bg7 {[%clk 0:02:57.2]} 3. Nc3 {[%clk 0:03:01.7]} 3... d6 {[%clk 0:02:57.4]}
4. e4 {[%clk 0:03:02]} 4... e5 {[%clk 0:02:57.5]} 5. d5 {[%clk 0:03:01.3]} 5...
f5 {[%clk 0:02:56.8]} 6. exf5 {[%clk 0:03:01.2]} 6... gxf5 {[%clk 0:02:54.6]} 7.
Qh5+ {[%clk 0:03:00.9]} 7... Kf8 {[%clk 0:02:54.5]} 8. Bd3 {[%clk 0:02:46.2]}
8... Nf6 {[%clk 0:02:55.4]} 9. Qh4 {[%clk 0:02:41]} 9... Qe7 {[%clk 0:02:51.4]}
10. Bh6 {[%clk 0:02:39.2]} 10... Bxh6 {[%clk 0:02:51]} 11. Qxh6+ {[%clk
0:02:40.1]} 11... Qg7 {[%clk 0:02:51.1]} 12. Qxg7+ {[%clk 0:02:34.7]} 12... Kxg7
{[%clk 0:02:52]} 13. f4 {[%clk 0:02:29.7]} 13... e4 {[%clk 0:02:47.8]} 14. Bc2
{[%clk 0:02:19.3]} 14... a5 {[%clk 0:02:48.2]} 15. Nge2 {[%clk 0:02:14.1]} 15...
Na6 {[%clk 0:02:45.6]} 16. O-O-O {[%clk 0:02:12.4]} 16... Bd7 {[%clk 0:02:39.7]}
17. Nd4 {[%clk 0:02:09.5]} 17... Kf7 {[%clk 0:02:33.3]} 18. Ba4 {[%clk
0:02:06.1]} 18... Bxa4 {[%clk 0:02:07.7]} 19. Nxa4 {[%clk 0:02:07]} 19... Ng4
{[%clk 0:02:01.8]} 20. Rd2 {[%clk 0:01:54.2]} 20... Kg6 {[%clk 0:01:59.2]} 21.
Ne6 {[%clk 0:01:12.5]} 21... h5 {[%clk 0:01:48]} 22. b3 {[%clk 0:00:56.5]} 22...
Rh7 {[%clk 0:01:39.4]} 23. Nb2 {[%clk 0:00:52.8]} 23... b6 {[%clk 0:01:37.4]}
24. h3 {[%clk 0:00:48.3]} 24... Nf6 {[%clk 0:01:36.2]} 25. Nd1 {[%clk
0:00:47.8]} 25... Nc5 {[%clk 0:01:33.2]} 26. Nxc5 {[%clk 0:00:36.8]} 26... bxc5
{[%clk 0:01:34.1]} 27. Ne3 {[%clk 0:00:37.1]} 27... h4 {[%clk 0:01:28.4]} 28.
Kc2 {[%clk 0:00:35.5]} 28... Nh5 {[%clk 0:01:27.7]} 29. Rf2 {[%clk 0:00:32.9]}
29... Kf6 {[%clk 0:01:25.7]} 30. Kc3 {[%clk 0:00:32.2]} 30... Rg7 {[%clk
0:01:25.9]} 31. Re1 {[%clk 0:00:25.1]} 31... Rg3 {[%clk 0:01:23.6]} 32. Kd2
{[%clk 0:00:23.1]} 32... a4 {[%clk 0:01:20.2]} 33. Rb1 {[%clk 0:00:13.8]} 33...
axb3 {[%clk 0:01:17.2]} 34. axb3 {[%clk 0:00:13.2]} 34... Ra2+ {[%clk
0:01:16.3]} 35. Ke1 {[%clk 0:00:04.7]} 35... Rxe3+ {[%clk 0:01:15.3]} 36. Kf1
{[%clk 0:00:03.7]} 36... Ng3+ {[%clk 0:01:11.7]} 0-1

[Event "Early-Titled-Tuesday-Blitz-June-18-2024"]
[Site "Chess.com"]
[Date "2024.06.18"]
[Round "11"]
[White "Angry_Twin"]
[Black "Evan_Attaker"]
[Result "0-1"]
[WhiteElo "2911"]
[BlackElo "2750"]
[TimeControl "180+1"]
[EndTime "10:06:59 PDT"]
[Termination "Evan_Attaker won by resignation"]

1. e4 {[%clk 0:03:00.9]} 1... d6 {[%clk 0:02:58.7]} 2. d4 {[%clk 0:03:00.7]}
2... Nf6 {[%clk 0:02:57.4]} 3. Nc3 {[%clk 0:03:00.7]} 3... g6 {[%clk 0:02:57.4]}
4. f4 {[%clk 0:03:00.4]} 4... Bg7 {[%clk 0:02:57.8]} 5. Nf3 {[%clk 0:03:01]}
5... O-O {[%clk 0:02:57.3]} 6. Bd3 {[%clk 0:02:59.3]} 6... Na6 {[%clk
0:02:56.8]} 7. O-O {[%clk 0:02:58.3]} 7... c5 {[%clk 0:02:56.7]} 8. d5 {[%clk
0:02:58.6]} 8... Nc7 {[%clk 0:02:56.4]} 9. a3 {[%clk 0:02:56.8]} 9... b5 {[%clk
0:02:55.4]} 10. f5 {[%clk 0:02:28.9]} 10... a5 {[%clk 0:02:46.3]} 11. fxg6
{[%clk 0:02:10]} 11... hxg6 {[%clk 0:02:47.2]} 12. Re1 {[%clk 0:01:52.6]} 12...
Ba6 {[%clk 0:02:36.8]} 13. Bg5 {[%clk 0:01:41.7]} 13... b4 {[%clk 0:02:36.2]}
14. Bxa6 {[%clk 0:01:37]} 14... bxc3 {[%clk 0:02:33.8]} 15. Bc4 {[%clk
0:01:37.1]} 15... cxb2 {[%clk 0:02:34.1]} 16. Rb1 {[%clk 0:01:37.4]} 16... Nd7
{[%clk 0:02:32.1]} 17. Qd3 {[%clk 0:01:37.6]} 17... Nb6 {[%clk 0:02:28.4]} 18.
c3 {[%clk 0:01:35]} 18... Nxc4 {[%clk 0:02:15.6]} 19. Qxc4 {[%clk 0:01:35.4]}
19... Rb8 {[%clk 0:02:15.7]} 20. Re2 {[%clk 0:01:23.1]} 20... Nb5 {[%clk
0:01:45.5]} 21. Rexb2 {[%clk 0:01:22.9]} 21... Nxa3 {[%clk 0:01:43.9]} 22. Rxb8
{[%clk 0:01:23.3]} 22... Qxb8 {[%clk 0:01:34.8]} 23. Rxb8 {[%clk 0:01:23.3]}
23... Nxc4 {[%clk 0:01:35.3]} 24. Rb7 {[%clk 0:01:24.2]} 24... Bxc3 {[%clk
0:01:32.8]} 25. Bxe7 {[%clk 0:01:24]} 25... Ra8 {[%clk 0:01:31.7]} 26. e5 {[%clk
0:01:14.3]} 26... Nxe5 {[%clk 0:01:22]} 27. Bxd6 {[%clk 0:01:13.8]} 27... Nxf3+
{[%clk 0:01:22.5]} 28. gxf3 {[%clk 0:01:14.4]} 28... Bd4+ {[%clk 0:01:23.1]} 29.
Kg2 {[%clk 0:01:11.2]} 29... a4 {[%clk 0:01:23]} 30. Bb8 {[%clk 0:00:18.1]}
30... a3 {[%clk 0:01:16.6]} 31. d6 {[%clk 0:00:18.2]} 31... a2 {[%clk
0:01:06.9]} 32. d7 {[%clk 0:00:18.2]} 32... Bf6 {[%clk 0:01:06.9]} 33. Be5
{[%clk 0:00:13.3]} 33... Bxe5 {[%clk 0:01:02.7]} 34. Ra7 {[%clk 0:00:13.7]}
34... a1=Q {[%clk 0:01:00.7]} 0-1

[Event "Early-Titled-Tuesday-Blitz-June-18-2024"]
[Site "Chess.com"]
[Date "2024.06.18"]
[Round "11"]
[White "Sanyura"]
[Black "chezzgirl04"]
[Result "1-0"]
[WhiteElo "2531"]
[BlackElo "2285"]
[TimeControl "180+1"]
[EndTime "10:07:03 PDT"]
[Termination "Sanyura won on time"]

1. Nf3 {[%clk 0:03:00.9]} 1... d5 {[%clk 0:02:56.5]} 2. e3 {[%clk 0:03:01]} 2...
g6 {[%clk 0:02:54.3]} 3. c4 {[%clk 0:03:01.9]} 3... c6 {[%clk 0:02:48.1]} 4. d4
{[%clk 0:03:00.3]} 4... Bg7 {[%clk 0:02:47.4]} 5. Nc3 {[%clk 0:02:58]} 5... e6
{[%clk 0:02:47.4]} 6. Be2 {[%clk 0:02:58]} 6... Ne7 {[%clk 0:02:47.8]} 7. O-O
{[%clk 0:02:57.7]} 7... O-O {[%clk 0:02:48.5]} 8. b4 {[%clk 0:02:58.1]} 8... a5
{[%clk 0:02:46.7]} 9. b5 {[%clk 0:02:57.9]} 9... dxc4 {[%clk 0:02:41.8]} 10.
bxc6 {[%clk 0:02:57.2]} 10... Nbxc6 {[%clk 0:02:39.8]} 11. Bxc4 {[%clk
0:02:57.6]} 11... Nd5 {[%clk 0:02:40.2]} 12. Bxd5 {[%clk 0:02:55.5]} 12... exd5
{[%clk 0:02:39.1]} 13. Qb3 {[%clk 0:02:56.1]} 13... Ne7 {[%clk 0:02:21.3]} 14.
Ba3 {[%clk 0:02:55.4]} 14... Be6 {[%clk 0:02:03.3]} 15. Rab1 {[%clk 0:02:52.1]}
15... Re8 {[%clk 0:01:57.6]} 16. Qxb7 {[%clk 0:02:50.7]} 16... Nf5 {[%clk
0:01:56.4]} 17. Nb5 {[%clk 0:02:42.2]} 17... Rb8 {[%clk 0:01:46]} 18. Qc7 {[%clk
0:02:41]} 18... Bf8 {[%clk 0:01:22.7]} 19. Bxf8 {[%clk 0:02:38.7]} 19... Rxf8
{[%clk 0:01:22.8]} 20. Ne5 {[%clk 0:02:35.4]} 20... Qg5 {[%clk 0:01:12.9]} 21.
f4 {[%clk 0:02:30.7]} 21... Qh5 {[%clk 0:01:00.9]} 22. Qc3 {[%clk 0:02:28.6]}
22... Rfc8 {[%clk 0:00:55.9]} 23. Qd2 {[%clk 0:02:28.4]} 23... Qh4 {[%clk
0:00:46.2]} 24. a4 {[%clk 0:02:26.7]} 24... Qe7 {[%clk 0:00:41.3]} 25. Rfc1
{[%clk 0:02:25]} 25... Qf6 {[%clk 0:00:27.5]} 26. g3 {[%clk 0:01:56.1]} 26...
Qg7 {[%clk 0:00:25.8]} 27. Kf2 {[%clk 0:01:46.4]} 27... f6 {[%clk 0:00:25.8]}
28. Nd3 {[%clk 0:01:45.2]} 28... Qh6 {[%clk 0:00:21.9]} 29. Kg1 {[%clk
0:01:42.8]} 29... Qf8 {[%clk 0:00:18.1]} 30. Rxc8 {[%clk 0:01:36.3]} 30... Rxc8
{[%clk 0:00:18.3]} 31. Nc5 {[%clk 0:01:36.9]} 31... Qe7 {[%clk 0:00:16]} 32. Re1
{[%clk 0:01:36.4]} 32... Bd7 {[%clk 0:00:15.6]} 33. Qxa5 {[%clk 0:01:35.8]}
33... Nxe3 {[%clk 0:00:12.7]} 34. Nxd7 {[%clk 0:01:31]} 34... Kg7 {[%clk
0:00:04.8]} 35. Nc5 {[%clk 0:01:26.8]} 35... Rxc5 {[%clk 0:00:04.3]} 36. dxc5
{[%clk 0:01:26]} 36... Qe4 {[%clk 0:00:04.5]} 37. Qd2 {[%clk 0:01:24.3]} 37...
d4 {[%clk 0:00:01.8]} 38. Nxd4 {[%clk 0:01:24.5]} 1-0